fUSD/lending_fUSD_20240521
["ID","MTS","AMOUNT","RATE_DAILY","PERIOD"]
[327682402,1716313856858,-5848.49,0.00030684,6]
[327682403,1716313856869,-500.0,0.00030684,6]
[327682404,1716313856879,-508.36268871,0.00030684,6]
[327682405,1716313856890,-1114.91,0.00030684,6]
[327682406,1716313856899,-500.0,0.00030684,6]
[327682407,1716313856909,-500.0,0.00030684,6]
[327682408,1716313856919,-500.0,0.00030684,6]
[327682409,1716313856929,-694.74,0.00030684,6]
[327682410,1716313856939,-500.0,0.00030684,6]
[327682411,1716313856949,-500.0,0.00030684,6]
[327682412,1716313856959,-1131.67,0.00030684,6]
[327682413,1716313856970,-191.11474,0.00030684,7]
[327682414,1716313856982,-4937.41,0.00030684,6]
[327682415,1716313856993,-1067.55,0.00030684,6]
[327682416,1716313857003,-566.79,0.00030684,6]
[327682417,1716313857013,-569.1,0.00030684,6]
[327682418,1716313857023,-1484.0,0.00030684,6]
[327682419,1716313857033,-500.0,0.00030684,6]
[327682420,1716313857043,-1978.37,0.00030684,6]
[327682421,1716313857054,-308.71,0.00030684,6]
[327682422,1716313857065,-500.0,0.00030684,6]
[327682423,1716313857074,-500.0,0.00030684,6]
[327682424,1716313857084,-500.0,0.00030684,6]
[327682425,1716313857094,-500.0,0.00030684,6]
[327682426,1716313857103,-1325.46,0.00030684,6]
[327682427,1716313857113,-500.0,0.00030684,6]
[327682428,1716313857123,-4130.26,0.00030684,6]
[327682429,1716313857132,-763.7,0.00030684,6]
[327682430,1716313857142,-500.0,0.00030684,6]
[327682431,1716313857152,-1058.46,0.00030684,6]
[327682432,1716313857162,-500.0,0.00030684,6]
[327682433,1716313857172,-500.0,0.00030684,6]
[327682434,1716313857182,-1565.62,0.00030684,6]
[327682435,1716313857194,-2660.06,0.00030684,6]
[327682436,1716313857204,-500.0,0.00030684,6]
[327682437,1716313857214,-500.0,0.00030684,6]
[327682438,1716313857225,-500.0,0.00030684,6]
[327682439,1716313857235,-500.0,0.00030684,6]
[327682440,1716313857246,-1141.76,0.00030684,6]
[327682441,1716313857257,-500.0,0.00030684,6]
[327682442,1716313857267,-500.0,0.00030684,6]
[327682443,1716313857277,-500.0,0.00030684,6]
[327682444,1716313857287,-644.29,0.00030684,6]
[327682445,1716313857297,-500.0,0.00030684,6]
[327682446,1716313857308,-500.0,0.00030684,6]
[327682447,1716313857318,-500.0,0.00030684,6]
[327682448,1716313857328,-500.0,0.00030684,6]
[327682449,1716313857339,-1522.3,0.00030684,6]
[327682450,1716313857350,-704.86,0.00030684,6]
[327682451,1716313857360,-500.0,0.00030684,6]
[327682452,1716313857370,-518.11,0.00030684,6]
[327682453,1716313857380,-856.42,0.00030684,6]
[327682454,1716313857389,-500.0,0.00030684,6]
[327682455,1716313857400,-500.0,0.00030684,6]
[327682456,1716313857410,-683.66,0.00030684,6]
[327682457,1716313857420,-9511.22,0.00030684,6]
[327682458,1716313857430,-500.0,0.00030684,6]
[327682459,1716313857440,-500.0,0.00030684,6]
[327682460,1716313857450,-823.75,0.00030684,6]
[327682461,1716313857461,-500.0,0.00030684,6]
[327682462,1716313857471,-2878.14,0.00030684,6]
[327682463,1716313857481,-552.09,0.00030684,6]
[327682464,1716313857492,-500.0,0.00030684,6]
[327682465,1716313857502,-500.0,0.00030684,6]
[327682466,1716313857512,-500.0,0.00030684,6]
[327682467,1716313857522,-500.0,0.00030684,6]
[327682468,1716313857533,-880.84,0.00030684,6]
[327682469,1716313857543,-500.0,0.00030684,6]
[327682470,1716313857554,-500.0,0.00030684,6]
[327682471,1716313857564,-500.0,0.00030684,6]
[327682472,1716313857578,-1813.8,0.00030684,6]
[327682473,1716313857588,-500.0,0.00030684,6]
[327682474,1716313857601,-500.0,0.00030684,6]
[327682475,1716313857611,-1594.29,0.00030684,6]
[327682476,1716313857620,-1377.92,0.00030684,6]
[327682477,1716313857632,-626.08,0.00030684,6]
[327682478,1716313857642,-500.0,0.00030684,6]
[327682479,1716313857652,-643.98,0.00030684,6]
[327682480,1716313857663,-9144.25,0.00030684,6]
[327682481,1716313857674,-500.0,0.00030684,6]
[327682482,1716313857684,-500.0,0.00030684,6]
[327682483,1716313857695,-2374.01,0.00030684,6]
[327682484,1716313857705,-151.0,0.00030684,7]
[327682485,1716313857715,-151.0,0.00030684,7]
[327682486,1716313857725,-500.0,0.00030684,6]
[327682487,1716313857735,-500.0,0.00030684,6]
[327682488,1716313857745,-2504.01,0.00030684,6]
[327682489,1716313857755,-500.0,0.00030684,6]
[327682490,1716313857766,-1802.01,0.00030684,6]
[327682491,1716313857777,-2948.95,0.00030684,6]
[327682492,1716313857787,-2629.43,0.00030684,6]
[327682493,1716313857797,-486.9046011,0.00030684,6]
[327682494,1716313857808,-500.0,0.00030684,6]
[327682495,1716313857818,-555.45,0.00030684,6]
[327682496,1716313857827,-1442.73,0.00030684,6]
[327682497,1716313857838,-500.0,0.00030684,6]
[327682498,1716313857849,-1026.75,0.00030684,6]
[327682499,1716313857860,-500.0,0.00030684,6]
[327682500,1716313857870,-151.0,0.00030684,7]
[327682501,1716313857880,-151.0,0.00030684,7]
[327682502,1716313857892,-151.0,0.00030684,7]
[327682503,1716313858142,-151.0,0.00030684,7]
[327682504,1716313858153,-2751.56,0.00030684,6]
[327682505,1716313858163,-1522.76,0.00030684,6]
[327682506,1716313858173,-1164.86,0.00030684,6]
[327682507,1716313858183,-3228.02,0.00030684,6]
[327682508,1716313858192,-500.0,0.00030684,6]
[327682509,1716313858202,-510.81,0.00030684,6]
[327682510,1716313858212,-500.0,0.00030684,6]
[327682511,1716313858222,-500.0,0.00030684,6]
[327682512,1716313858232,-500.0,0.00030684,6]
[327682513,1716313858242,-2996.41,0.00030684,6]
[327682514,1716313858252,-500.0,0.00030684,6]
[327682515,1716313858262,-500.0,0.00030684,6]
[327682516,1716313858272,-3003.38,0.00030684,6]
[327682517,1716313858282,-500.0,0.00030684,6]
[327682518,1716313858292,-1049.49,0.00030684,6]
[327682519,1716313858302,-500.0,0.00030684,6]
[327682520,1716313858312,-534.48,0.00030684,6]
[327682521,1716313858322,-1961.85,0.00030684,6]
[327682522,1716313858333,-2787.75,0.00030684,6]
[327682523,1716313858343,-1378.25,0.00030684,6]
[327682524,1716313858353,-2125.68,0.00030684,6]
[327682525,1716313858363,-1295.48,0.00030684,6]
[327682526,1716313858373,-500.0,0.00030684,6]
[327682527,1716313858383,-4986.61,0.00030684,6]
[327682528,1716313858393,-500.0,0.00030684,6]
[327682529,1716313858404,-1925.65,0.00030684,6]
[327682530,1716313858414,-502.53,0.00030684,6]
[327682531,1716313858424,-500.0,0.00030684,6]
[327682532,1716313858434,-557.17,0.00030684,6]
[327682533,1716313858444,-500.0,0.00030684,6]
[327682534,1716313858454,-887.65,0.00030684,6]
[327682535,1716313858464,-500.0,0.00030684,6]
[327682536,1716313858475,-1681.79,0.00030684,6]
[327682537,1716313858485,-812.91,0.00030684,6]
[327682538,1716313858495,-1802.71,0.00030684,6]
[327682539,1716313858505,-500.0,0.00030684,6]
[327682540,1716313858515,-655.15,0.00030684,6]
[327682541,1716313858526,-500.0,0.00030684,6]
[327682542,1716313858535,-500.0,0.00030684,6]
[327682543,1716313858545,-513.04,0.00030684,6]
[327682544,1716313858555,-151.0,0.00030684,7]
[327682545,1716313858566,-151.0,0.00030684,7]
[327682546,1716313858576,-208.34,0.00030684,6]
[327682547,1716313858587,-572.88,0.00030684,6]
[327682548,1716313858597,-3113.72,0.00030684,6]
[327682549,1716313858607,-524.63,0.00030684,6]
[327682550,1716313858617,-254.51685,0.00030684,7]
[327682551,1716313858626,-500.0,0.00030684,6]
[327682552,1716313858636,-2450.63,0.00030684,6]
[327682553,1716313858646,-500.0,0.00030684,6]
[327682554,1716313858656,-500.0,0.00030684,6]
[327682555,1716313858666,-500.0,0.00030684,6]
[327682556,1716313858676,-1997.65,0.00030684,6]
[327682557,1716313858686,-521.83253252,0.00030684,6]
[327682558,1716313858696,-151.0,0.00030684,7]
[327682559,1716313858705,-1292.71,0.00030684,6]
[327682560,1716313858715,-500.0,0.00030684,6]
[327682561,1716313858725,-500.0,0.00030684,6]
[327682562,1716313858734,-500.0,0.00030684,6]
[327682563,1716313858744,-500.0,0.00030684,6]
[327682564,1716313858754,-500.0,0.00030684,2]
[327682565,1716313858764,-1061.26,0.00030684,6]
[327682566,1716313858773,-551.8,0.00030684,6]
[327682567,1716313858783,-500.0,0.00030684,6]
[327682568,1716313858793,-500.0,0.00030684,6]
[327682569,1716313858802,-500.0,0.00030684,6]
[327682570,1716313858812,-5977.44,0.00030684,6]
[327682571,1716313858822,-2589.42,0.00030684,6]
[327682572,1716313858831,-1960.62,0.00030684,6]
[327682573,1716313858841,-500.0,0.00030684,6]
[327682574,1716313858851,-926.95,0.00030684,6]
[327682575,1716313858861,-5427.38,0.00030684,6]
[327682576,1716313858872,-151.0,0.00030684,7]
[327682577,1716313858882,-500.0,0.00030684,6]
[327682578,1716313858892,-700.04,0.00030684,6]
[327682579,1716313858901,-500.0,0.00030684,6]
[327682580,1716313858911,-1305.56,0.00030684,6]
[327682581,1716313858920,-686.7,0.00030684,6]
[327682582,1716313858932,-3111.49,0.00030684,6]
[327682583,1716313858942,-151.0,0.00030684,7]
[327682584,1716313858951,-309.963824,0.00030684,7]
[327682585,1716313858961,-151.0,0.00030684,7]
[327682586,1716313858971,-19457.3,0.00030684,6]
[327682587,1716313858984,-309.963824,0.00030684,7]
[327682588,1716313858994,-6060.34,0.00030684,6]
[327682589,1716313859003,-500.0,0.00030684,6]
[327682590,1716313859015,-998.13,0.00030684,6]
[327682591,1716313859024,-309.963824,0.00030684,7]
[327682592,1716313859035,-882.12,0.00030684,6]
[327682593,1716313859046,-9899.89,0.00030684,6]
[327682594,1716313859057,-309.963824,0.00030684,7]
[327682595,1716313859151,-407.58,0.00030717,2]
[327682596,1716313859163,-300.0,0.00030717,2]
[327682597,1716313859174,-528.19,0.00030717,2]
[327682598,1716313859184,-150.0,0.00030717,2]
[327682599,1716313859194,-304.6,0.00030717,2]
[327682600,1716313859205,-300.0,0.00030717,2]
[327682601,1716313859214,-524.14,0.00030717,2]
[327682602,1716313859223,-523.45,0.00030717,2]
[327682603,1716313859233,-307.94,0.00030717,2]
[327682604,1716313859242,-3256.91941702,0.00030858,2]
[327682605,1716313859252,-313.76801603,0.00030877,7]
[327682606,1716313859262,-150.0,0.00030883,2]
[327682607,1716313859271,-1845.99542256,0.00030958,2]
[327682608,1716313859281,-500.0,0.00030958,6]
[327682609,1716313859290,-503.69,0.00030958,6]
[327682610,1716313859299,-580.57,0.00030958,6]
[327682611,1716313859309,-678.79,0.00030958,6]
[327682612,1716313859318,-1048.52,0.00030958,6]
[327682613,1716313859328,-500.0,0.00030958,6]
[327682614,1716313859337,-637.75,0.00030958,6]
[327682615,1716313859348,-500.0,0.00030958,6]
[327682616,1716313859357,-933.31,0.00030958,6]
[327682617,1716313859366,-500.0,0.00030958,6]
[327682618,1716313859375,-512.08,0.00030958,6]
[327682619,1716313859385,-500.0,0.00030958,6]
[327682620,1716313859394,-500.0,0.00030958,6]
[327682621,1716313859404,-500.0,0.00030958,6]
[327682622,1716313859414,-500.0,0.00030958,6]
[327682623,1716313859423,-500.0,0.00030958,6]
[327682624,1716313859434,-500.0,0.00030958,6]
[327682625,1716313859443,-262.85988264,0.00030958,6]
[327682626,1716313859454,-500.0,0.00030958,6]
[327682627,1716313859463,-500.0,0.00030958,6]
[327682628,1716313859473,-788.09,0.00030958,6]
[327682629,1716313859484,-504.79,0.00030958,6]
[327682630,1716313859493,-620.36,0.00030958,6]
[327682631,1716313859503,-500.0,0.00030958,6]
[327682632,1716313859513,-500.0,0.00030958,6]
[327682633,1716313859523,-598.13,0.00030958,6]
[327682634,1716313859533,-500.0,0.00030958,6]
[327682635,1716313859543,-500.0,0.00030958,6]
[327682636,1716313859555,-500.0,0.00030958,6]
[327682637,1716313859564,-500.0,0.00030958,6]
[327682638,1716313859574,-500.0,0.00030958,6]
[327682639,1716313859585,-500.0,0.00030958,6]
[327682640,1716313859595,-500.0,0.00030958,6]
[327682641,1716313859606,-500.0,0.00030958,6]
[327682642,1716313859615,-500.0,0.00030958,6]
[327682643,1716313859624,-607.58,0.00030958,6]
[327682644,1716313859634,-500.0,0.00030958,6]
[327682645,1716313859644,-618.65,0.00030958,6]
[327682646,1716313859654,-500.0,0.00030958,6]
[327682647,1716313859664,-517.29,0.00030958,6]
[327682648,1716313859674,-500.0,0.00030958,6]
[327682649,1716313859684,-704.45,0.00030958,6]
[327682650,1716313859694,-500.0,0.00030958,6]
[327682651,1716313859703,-500.0,0.00030958,6]
[327682652,1716313859713,-500.0,0.00030958,6]
[327682653,1716313859723,-500.0,0.00030958,6]
[327682654,1716313859732,-500.0,0.00030958,6]
[327682655,1716313859742,-500.0,0.00030958,6]
[327682656,1716313859751,-500.0,0.00030958,6]
[327682657,1716313859762,-879.68,0.00030958,6]
[327682658,1716313859775,-579.52,0.00030958,6]
[327682659,1716313859784,-591.15,0.00030958,6]
[327682660,1716313859794,-500.0,0.00030958,6]
[327682661,1716313859803,-500.0,0.00030958,6]
[327682662,1716313859812,-500.0,0.00030958,6]
[327682663,1716313859822,-500.0,0.00030958,6]
[327682664,1716313859831,-500.0,0.00030958,6]
[327682665,1716313859841,-500.0,0.00030958,6]
[327682666,1716313859852,-1788.63,0.00030958,6]
[327682667,1716313859862,-364.17264635,0.00030958,6]
[327682668,1716313859871,-500.0,0.00030958,6]
[327682669,1716313859880,-500.0,0.00030958,6]
[327682670,1716313859889,-500.0,0.00030958,6]
[327682671,1716313859898,-837.66,0.00030958,6]
[327682672,1716313859908,-856.76,0.00030958,6]
[327682673,1716313859917,-500.0,0.00030958,6]
[327682674,1716313859926,-500.0,0.00030958,6]
[327682675,1716313859935,-500.0,0.00030958,6]
[327682676,1716313859945,-561.17,0.00030958,6]
[327682677,1716313859954,-641.1,0.00030958,6]
[327682678,1716313859963,-668.81,0.00030958,6]
[327682679,1716313859974,-752.65,0.00030958,6]
[327682680,1716313859987,-563.35,0.00030958,6]
[327682681,1716313859996,-853.3,0.00030958,6]
[327682682,1716313860006,-565.02,0.00030958,6]
[327682683,1716313860016,-796.43,0.00030958,6]
[327682684,1716313860025,-500.0,0.00030958,6]
[327682685,1716313860035,-500.0,0.00030958,6]
[327682686,1716313860044,-518.76,0.00030958,6]
[327682687,1716313860054,-500.0,0.00030958,6]
[327682688,1716313860065,-500.0,0.00030958,6]
[327682689,1716313860075,-500.0,0.00030958,6]
[327682690,1716313860085,-500.0,0.00030958,6]
[327682691,1716313860096,-500.0,0.00030958,6]
[327682692,1716313860106,-537.82,0.00030958,6]
[327682693,1716313860116,-707.8,0.00030958,6]
[327682694,1716313860126,-500.0,0.00030958,6]
[327682695,1716313860136,-500.0,0.00030958,6]
[327682696,1716313860145,-835.97,0.00030958,6]
[327682697,1716313860156,-500.0,0.00030958,6]
[327682698,1716313860166,-500.0,0.00030958,6]
[327682699,1716313860176,-623.56,0.00030958,6]
[327682700,1716313860186,-559.06,0.00030958,6]
[327682701,1716313860196,-500.0,0.00030958,6]
[327682702,1716313860206,-648.06,0.00030958,6]
[327682703,1716313860216,-518.02,0.00030958,6]
[327682704,1716313860227,-629.23,0.00030958,6]
[327682705,1716313860237,-794.39,0.00030958,6]
[327682706,1716313860246,-500.0,0.00030958,6]
[327682707,1716313860256,-632.69,0.00030958,6]
[327682708,1716313860266,-500.0,0.00030958,6]
[327682709,1716313860276,-500.0,0.00030958,6]
[327682710,1716313860286,-1513.67,0.00030958,6]
[327682711,1716313860297,-930.6,0.00030958,6]
[327682712,1716313860307,-500.0,0.00030958,6]
[327682713,1716313860318,-500.0,0.00030958,6]
[327682714,1716313860327,-1288.05,0.00030958,6]
[327682715,1716313860338,-500.0,0.00030958,6]
[327682716,1716313860348,-500.0,0.00030958,6]
[327682717,1716313860359,-500.0,0.00030958,6]
[327682718,1716313860369,-500.0,0.00030958,6]
[327682719,1716313860380,-307.91,0.00030958,6]
[327682720,1716313860390,-500.0,0.00030958,6]
[327682721,1716313860400,-500.0,0.00030958,6]
[327682722,1716313860410,-500.0,0.00030958,6]
[327682723,1716313860421,-948.69,0.00030958,6]
[327682724,1716313860431,-500.0,0.00030958,6]
[327682725,1716313860441,-285.34,0.00030958,6]
[327682726,1716313860451,-785.32,0.00030958,6]
[327682727,1716313860461,-624.81,0.00030958,6]
[327682728,1716313860471,-500.0,0.00030958,6]
[327682729,1716313860481,-500.0,0.00030958,6]
[327682730,1716313860491,-1028.13,0.00030958,6]
[327682731,1716313860501,-579.36,0.00030958,6]
[327682732,1716313860511,-271.22200444,0.00030958,6]
[327682733,1716313860523,-587.41,0.00030958,6]
[327682734,1716313860532,-1664.19,0.00030958,6]
[327682735,1716313860542,-725.53,0.00030958,6]
[327682736,1716313860552,-500.0,0.00030958,6]
[327682737,1716313860563,-584.62,0.00030958,6]
[327682738,1716313860575,-533.41,0.00030958,6]
[327682739,1716313860586,-208.64570205,0.00030958,6]
[327682740,1716313860598,-1067.84,0.00030958,6]
[327682741,1716313860608,-641.82,0.00030958,6]
[327682742,1716313860618,-552.41,0.00030958,6]
[327682743,1716313860628,-580.9,0.00030958,6]
[327682744,1716313860638,-500.0,0.00030958,6]
[327682745,1716313860649,-690.08,0.00030958,6]
[327682746,1716313860659,-602.59438045,0.00030958,6]
[327682747,1716313860669,-1145.1,0.00030958,6]
[327682748,1716313860681,-576.62,0.00030958,6]
[327682749,1716313860692,-500.0,0.00030958,6]
[327682750,1716313860702,-829.09,0.00030958,6]
[327682751,1716313860713,-1375.15,0.00030958,6]
[327682752,1716313860723,-500.0,0.00030958,6]
[327682753,1716313860734,-663.55,0.00030958,6]
[327682754,1716313860743,-500.0,0.00030958,6]
[327682755,1716313860753,-630.27,0.00030958,6]
[327682756,1716313860763,-856.08,0.00030958,6]
[327682757,1716313860773,-500.0,0.00030958,6]
[327682758,1716313860783,-816.6,0.00030958,6]
[327682759,1716313860797,-654.06,0.00030958,6]
[327682760,1716313860812,-716.43,0.00030958,6]
[327682761,1716313860827,-1509.0,0.00030958,6]
[327682762,1716313860840,-1081.87,0.00030958,6]
[327682763,1716313860856,-872.69,0.00030958,6]
[327682764,1716313860868,-500.0,0.00030958,6]
[327682765,1716313860882,-990.26,0.00030958,6]
[327682766,1716313860894,-613.1,0.00030958,6]
[327682767,1716313860907,-500.0,0.00030958,6]
[327682768,1716313860921,-1133.38,0.00030958,6]
[327682769,1716313860934,-500.0,0.00030958,6]
[327682770,1716313860949,-500.0,0.00030958,6]
[327682771,1716313860963,-500.0,0.00030958,6]
[327682772,1716313860982,-706.25,0.00030958,6]
[327682773,1716313860994,-731.7,0.00030958,6]
[327682774,1716313861005,-500.0,0.00030958,6]
[327682775,1716313861019,-694.68,0.00030958,6]
[327682776,1716313861034,-775.16,0.00030958,6]
[327682777,1716313861049,-642.86579954,0.00030958,6]
[327682778,1716313861065,-500.0,0.00030958,6]
[327682779,1716313861078,-933.32,0.00030958,6]
[327682780,1716313861088,-377.66,0.00030958,6]
[327682781,1716313861103,-962.37,0.00030958,6]
[327682782,1716313861115,-1103.13,0.00030958,6]
[327682783,1716313861127,-500.0,0.00030958,6]
[327682784,1716313861140,-500.0,0.00030958,6]
[327682785,1716313861153,-500.0,0.00030958,6]
[327682786,1716313861165,-664.64,0.00030958,6]
[327682787,1716313861179,-634.85,0.00030958,6]
[327682788,1716313861193,-995.11,0.00030958,6]
[327682789,1716313861206,-500.0,0.00030958,6]
[327682790,1716313861217,-500.0,0.00030958,6]
[327682791,1716313861228,-535.18126584,0.00030958,6]
[327682792,1716313861239,-368.12,0.00030958,6]
[327682793,1716313861250,-1328.69,0.00030958,6]
[327682794,1716313861263,-500.0,0.00030958,6]
[327682795,1716313861276,-531.24,0.00030958,6]
[327682796,1716313861289,-500.0,0.00030958,6]
[327682797,1716313861300,-631.92,0.00030958,6]
[327682798,1716313861311,-1121.95,0.00030958,6]
[327682799,1716313861324,-629.85,0.00030958,6]
[327682800,1716313861336,-500.0,0.00030958,6]
[327682801,1716313861351,-500.0,0.00030958,6]
[327682802,1716313861363,-564.01,0.00030958,6]
[327682803,1716313861375,-589.77,0.00030958,6]
[327682804,1716313861387,-129.09539918,0.00030958,6]
[327682805,1716313861666,-698.14,0.00030684,6]
[327682806,1716313861680,-2208.53,0.00030684,6]
[327682807,1716313861692,-370.90460082,0.00030958,6]
[327682808,1716313861703,-500.0,0.00030958,6]
[327682809,1716313861715,-500.0,0.00030958,6]
[327682810,1716313861726,-150.0,0.00030958,6]
[327682811,1716313861737,-500.0,0.00030958,6]
[327682812,1716313861748,-500.0,0.00030958,6]
[327682813,1716313861759,-388.10239267,0.00030958,6]
[327682814,1716313861770,-1270.39,0.00030958,6]
[327682815,1716313861780,-805.53,0.00030958,6]
[327682816,1716313861791,-568.14,0.00030958,6]
[327682817,1716313861802,-500.0,0.00030958,6]
[327682818,1716313861813,-591.9,0.00030958,6]
[327682819,1716313861823,-820.19,0.00030958,6]
[327682820,1716313861834,-500.0,0.00030958,6]
[327682821,1716313861846,-571.33,0.00030958,6]
[327682822,1716313861857,-634.19,0.00030958,6]
[327682823,1716313861869,-570.98,0.00030958,6]
[327682824,1716313861881,-537.12,0.00030958,6]
[327682825,1716313861893,-500.0,0.00030958,6]
[327682826,1716313861905,-500.0,0.00030958,6]
[327682827,1716313861916,-629.49,0.00030958,6]
[327682828,1716313861927,-1404.87,0.00030958,6]
[327682829,1716313861939,-500.0,0.00030958,6]
[327682830,1716313861950,-500.0,0.00030958,6]
[327682831,1716313861961,-500.0,0.00030958,6]
[327682832,1716313861973,-754.26,0.00030958,6]
[327682833,1716313861988,-648.43,0.00030958,6]
[327682834,1716313861999,-1610.22,0.00030958,6]
[327682835,1716313862011,-225.61462143,0.00030958,6]
[327682836,1716313862022,-350.384779,0.00030958,7]
[327682837,1716313862035,-853.67,0.00030958,6]
[327682838,1716313862046,-350.384779,0.00030958,7]
[327682839,1716313862058,-772.0,0.00030958,6]
[327682840,1716313862070,-997.78,0.00030958,6]
[327682841,1716313862082,-500.0,0.00030958,6]
[327682842,1716313862095,-350.384779,0.00030958,7]
[327682843,1716313862106,-971.82,0.00030958,6]
[327682844,1716313862117,-350.384779,0.00030958,7]
[327682845,1716313862128,-500.0,0.00030958,6]
[327682846,1716313862140,-1224.47,0.00030958,6]
[327682847,1716313862151,-500.0,0.00030958,6]
[327682848,1716313862162,-151.0,0.00030958,7]
[327682849,1716313862173,-500.0,0.00030958,6]
[327682850,1716313862185,-541.4395218,0.00030958,6]
[327682851,1716313862197,-1056.43,0.00030958,6]
[327682852,1716313862209,-4821.01,0.00030958,6]
[327682853,1716313862220,-409.1400373,0.00030958,6]
[327682854,1716313862231,-1727.8,0.00030958,6]
[327682855,1716313862243,-55029.83,0.00030958,6]
[327682856,1716313862256,-500.0,0.00030958,6]
[327682857,1716313862268,-500.0,0.00030958,6]
[327682858,1716313862280,-765.99,0.00030958,6]
[327682859,1716313862293,-500.0,0.00030958,6]
[327682860,1716313862304,-1260.2,0.00030958,6]
[327682861,1716313862315,-151.0,0.00030958,7]
[327682862,1716313862327,-151.0,0.00030958,7]
[327682863,1716313862337,-1024.33,0.00030958,6]
[327682864,1716313862351,-3266.69,0.00030958,6]
[327682865,1716313862363,-500.0,0.00030958,6]
[327682866,1716313862374,-2068.84,0.00030958,6]
[327682867,1716313862386,-507.5,0.00030958,6]
[327682868,1716313862397,-500.0,0.00030958,6]
[327682869,1716313862408,-500.0,0.00030958,6]
[327682870,1716313862420,-589.63,0.00030958,6]
[327682871,1716313862432,-890.74,0.00030958,6]
[327682872,1716313862443,-500.0,0.00030958,6]
[327682873,1716313862455,-1872.57,0.00030958,6]
[327682874,1716313862466,-500.0,0.00030958,6]
[327682875,1716313862477,-650.38,0.00030958,6]
[327682876,1716313862489,-821.97,0.00030958,6]
[327682877,1716313862500,-500.0,0.00030958,6]
[327682878,1716313862512,-918.56,0.00030958,6]
[327682879,1716313862523,-500.0,0.00030958,6]
[327682880,1716313862534,-500.0,0.00030958,6]
[327682881,1716313862545,-500.0,0.00030958,6]
[327682882,1716313862557,-3263.74,0.00030958,6]
[327682883,1716313862569,-4731.98,0.00030958,6]
[327682884,1716313862582,-3089.71,0.00030958,6]
[327682885,1716313862593,-895.39,0.00030958,6]
[327682886,1716313862606,-500.0,0.00030958,6]
[327682887,1716313862617,-1210.58,0.00030958,6]
[327682888,1716313862628,-1299.13,0.00030958,6]
[327682889,1716313862639,-1036.27,0.00030958,6]
[327682890,1716313862650,-500.0,0.00030958,6]
[327682891,1716313862660,-500.0,0.00030958,6]
[327682892,1716313862671,-500.0,0.00030958,6]
[327682893,1716313862682,-539.2,0.00030958,6]
[327682894,1716313862693,-500.0,0.00030958,6]
[327682895,1716313862705,-5553.31,0.00030958,6]
[327682896,1716313862715,-21406.92,0.00030958,6]
[327682897,1716313862726,-1944.57,0.00030958,6]
[327682898,1716313862737,-170.20137709,0.00030958,6]
[327682899,1716313862749,-500.0,0.00030958,6]
[327682900,1716313862760,-965.03,0.00030958,6]
[327682901,1716313862771,-500.0,0.00030958,6]